fUSD/lending_fUSD_20260501
["ID","MTS","AMOUNT","RATE_DAILY","PERIOD"]
[421431379,1777639840000,-422.0,9.452e-05,2]
[421431385,1777639840000,-500.0,9.452e-05,2]
[421431452,1777639841000,-500.0,0.0001,2]
[421431454,1777639841000,-151.0,0.0001,2]
[421431448,1777639841000,-500.0,0.0001,2]
[421431445,1777639841000,-151.0,0.0001,2]
[421431441,1777639841000,-151.0,0.0001,2]
[421431442,1777639841000,-500.0,0.0001,2]
[421431440,1777639841000,-500.0,0.0001,2]
[421431436,1777639841000,-500.0,0.0001,2]
[421431443,1777639841000,-151.0,0.0001,2]
[421431439,1777639841000,-151.0,0.0001,2]
[421431438,1777639841000,-500.0,0.0001,2]
[421431449,1777639841000,-151.0,0.0001,2]
[421431459,1777639841000,-151.0,0.0001,2]
[421431446,1777639841000,-500.0,0.0001,2]
[421431450,1777639841000,-500.0,0.0001,2]
[421431451,1777639841000,-151.0,0.0001,2]
[421431444,1777639841000,-500.0,0.0001,2]
[421431453,1777639841000,-500.0,0.0001,2]
[421431458,1777639841000,-151.0,0.0001,2]
[421431460,1777639841000,-151.0,0.0001,2]
[421431464,1777639841000,-151.0,0.0001,2]
[421431457,1777639841000,-151.0,0.0001,2]
[421431467,1777639841000,-500.0,0.0001,2]
[421431456,1777639841000,-151.0,0.0001,2]
[421431437,1777639841000,-151.0,0.0001,2]
[421431447,1777639841000,-151.0,0.0001,2]
[421431432,1777639841000,-200.0,0.0001,2]
[421431407,1777639841000,-150.0,9.664e-05,2]
[421431433,1777639841000,-151.0,0.0001,2]
[421431406,1777639841000,-200.0,9.632e-05,2]
[421431411,1777639841000,-150.0,9.729e-05,2]
[421431412,1777639841000,-150.0,9.729e-05,2]
[421431408,1777639841000,-150.0,9.669e-05,2]
[421431409,1777639841000,-150.0,9.7e-05,2]
[421431413,1777639841000,-150.0,9.737e-05,2]
[421431418,1777639841000,-150.0,9.82e-05,2]
[421431415,1777639841000,-150.0,9.782e-05,2]
[421431416,1777639841000,-150.0,9.782e-05,2]
[421431465,1777639841000,-500.0,0.0001,2]
[421431410,1777639841000,-543.75339721,9.726e-05,2]
[421431414,1777639841000,-150.0,9.773e-05,2]
[421431417,1777639841000,-150.0,9.81e-05,2]
[421431419,1777639841000,-500.0,9.822e-05,2]
[421431425,1777639841000,-150.0,9.882e-05,2]
[421431424,1777639841000,-150.0,9.846e-05,2]
[421431430,1777639841000,-150.0,9.971e-05,2]
[421431428,1777639841000,-150.0,9.941e-05,2]
[421431420,1777639841000,-1680.0,9.822e-05,2]
[421431423,1777639841000,-255.0,9.832e-05,2]
[421431429,1777639841000,-150.0,9.955e-05,2]
[421431421,1777639841000,-250.0,9.823e-05,2]
[421431422,1777639841000,-250.0,9.823e-05,2]
[421431427,1777639841000,-150.0,9.941e-05,2]
[421431426,1777639841000,-150.0,9.919e-05,2]
[421431431,1777639841000,-150.0,9.992e-05,2]
[421431435,1777639841000,-151.0,0.0001,2]
[421431434,1777639841000,-151.0,0.0001,2]
[421431462,1777639841000,-151.0,0.0001,2]
[421431455,1777639841000,-500.0,0.0001,2]
[421431466,1777639841000,-151.0,0.0001,2]
[421431501,1777639841000,-150.0,0.00010152,2]
[421431497,1777639841000,-234.90755566,0.00010118,2]
[421431500,1777639841000,-500.86,0.00010151,2]
[421431498,1777639841000,-150.0,0.00010122,2]
[421431499,1777639841000,-150.0,0.00010138,2]
[421431505,1777639841000,-150.0,0.00010174,2]
[421431503,1777639841000,-4048.784,0.00010171,2]
[421431504,1777639841000,-296.227,0.00010171,2]
[421431512,1777639841000,-454.954633,0.0001029,2]
[421431511,1777639841000,-7175.643049,0.0001029,2]
[421431510,1777639841000,-150.0,0.00010284,2]
[421431509,1777639841000,-1955.36,0.00010274,2]
[421431494,1777639841000,-150.0,0.00010101,2]
[421431508,1777639841000,-150.0,0.00010273,2]
[421431507,1777639841000,-150.0,0.00010247,2]
[421431514,1777639841000,-150.0,0.00010311,2]
[421431520,1777639841000,-1001.80802509,0.00010361,2]
[421431523,1777639841000,-18285.786712,0.00010388,2]
[421431517,1777639841000,-500.0,0.00010356,2]
[421431519,1777639841000,-150.0,0.00010357,2]
[421431515,1777639841000,-150.0,0.00010311,2]
[421431516,1777639841000,-150.0,0.0001032,2]
[421431521,1777639841000,-150.0,0.00010364,2]
[421431518,1777639841000,-500.0,0.00010356,2]
[421431522,1777639841000,-150.0,0.00010364,2]
[421431461,1777639841000,-500.0,0.0001,2]
[421431506,1777639841000,-150.0,0.00010211,2]
[421431493,1777639841000,-500.0,0.00010083,2]
[421431513,1777639841000,-39145.128594,0.0001029,2]
[421431491,1777639841000,-500.0,0.00010083,2]
[421431495,1777639841000,-377.86,0.00010105,2]
[421431469,1777639841000,-500.0,0.0001,2]
[421431468,1777639841000,-151.0,0.0001,2]
[421431470,1777639841000,-300.58559612,0.0001,2]
[421431471,1777639841000,-500.0,0.0001,2]
[421431473,1777639841000,-500.0,0.0001,2]
[421431477,1777639841000,-500.0,0.0001,2]
[421431472,1777639841000,-500.0,0.0001,2]
[421431476,1777639841000,-151.0,0.0001,2]
[421431478,1777639841000,-226.0,0.0001,2]
[421431475,1777639841000,-500.0,0.0001,2]
[421431474,1777639841000,-500.0,0.0001,2]
[421431479,1777639841000,-226.0,0.0001,2]
[421431481,1777639841000,-368.556944,0.0001,2]
[421431463,1777639841000,-500.0,0.0001,2]
[421431496,1777639841000,-1000.0,0.00010118,2]
[421431480,1777639841000,-368.556944,0.0001,2]
[421431502,1777639841000,-150.0,0.00010152,2]
[421431492,1777639841000,-500.0,0.00010083,2]
[421431490,1777639841000,-248.80690135,0.00010083,2]
[421431489,1777639841000,-500.0,0.00010083,2]
[421431488,1777639841000,-150.0,0.00010065,2]
[421431486,1777639841000,-150.0,0.00010047,2]
[421431485,1777639841000,-150.0,0.00010047,2]
[421431484,1777639841000,-187.78006525,0.00010031,2]
[421431482,1777639841000,-368.556944,0.0001,2]
[421431483,1777639841000,-150.0,0.00010028,2]
[421431487,1777639841000,-437.34,0.0001005,2]
[421431563,1777639842000,-500.0,0.00010573,2]
[421431572,1777639842000,-181.75297138,0.00010575,2]
[421431562,1777639842000,-500.0,0.00010573,2]
[421431561,1777639842000,-500.0,0.00010573,2]
[421431551,1777639842000,-500.0,0.00010573,2]
[421431558,1777639842000,-500.0,0.00010573,2]
[421431559,1777639842000,-500.0,0.00010573,2]
[421431552,1777639842000,-170.0218564,0.00010573,2]
[421431555,1777639842000,-500.0,0.00010573,2]
[421431549,1777639842000,-500.0,0.00010573,2]
[421431565,1777639842000,-500.0,0.00010573,2]
[421431557,1777639842000,-501.21373818,0.00010573,2]
[421431564,1777639842000,-500.0,0.00010573,2]
[421431574,1777639842000,-150.0,0.00010575,2]
[421431566,1777639842000,-500.0,0.00010573,2]
[421431568,1777639842000,-274.20071681,0.00010575,2]
[421431567,1777639842000,-160.76572471,0.00010573,2]
[421431571,1777639842000,-176.35900002,0.00010575,2]
[421431569,1777639842000,-158.65291331,0.00010575,2]
[421431575,1777639842000,-194.72792766,0.00010579,2]
[421431581,1777639842000,-2351.0,0.00010804,2]
[421431578,1777639842000,-1500000.0,0.000106,2]
[421431579,1777639842000,-1500.0,0.00010666,2]
[421431583,1777639842000,-166.66,0.00010894,2]
[421431577,1777639842000,-1223.5174914,0.0001059,2]
[421431576,1777639842000,-250.0,0.0001059,2]
[421431570,1777639842000,-236.20266776,0.00010575,2]
[421431556,1777639842000,-164.79872717,0.00010573,2]
[421431584,1777639842000,-416.91605816,0.000109,2]
[421431560,1777639842000,-500.0,0.00010573,2]
[421431524,1777639842000,-150.0,0.00010393,2]
[421431527,1777639842000,-150.0,0.00010424,2]
[421431526,1777639842000,-166.8,0.00010411,2]
[421431528,1777639842000,-150.0,0.00010429,2]
[421431530,1777639842000,-150.0,0.00010466,2]
[421431529,1777639842000,-166.66,0.00010462,2]
[421431534,1777639842000,-997.9855516,0.000105,2]
[421431531,1777639842000,-500.0,0.00010493,2]
[421431533,1777639842000,-1704.64356924,0.000105,2]
[421431535,1777639842000,-5000.0,0.000105,2]
[421431532,1777639842000,-421.14904041,0.000105,2]
[421431536,1777639842000,-150.0,0.00010502,2]
[421431553,1777639842000,-500.0,0.00010573,2]
[421431538,1777639842000,-150.0,0.00010539,2]
[421431547,1777639842000,-168.16156213,0.00010573,2]
[421431539,1777639842000,-200.0,0.00010548,2]
[421431540,1777639842000,-151.0,0.00010548,2]
[421431537,1777639842000,-437.34,0.00010507,2]
[421431541,1777639842000,-2395.55184441,0.00010566,2]
[421431546,1777639842000,-260.22354332,0.00010573,2]
[421431542,1777639842000,-500.0,0.00010573,2]
[421431544,1777639842000,-500.0,0.00010573,2]
[421431543,1777639842000,-594.02702041,0.00010573,2]
[421431545,1777639842000,-200.58198959,0.00010573,2]
[421431550,1777639842000,-500.0,0.00010573,2]
[421431554,1777639842000,-500.0,0.00010573,2]
[421431548,1777639842000,-234.6849822,0.00010573,2]
[421431582,1777639842000,-433.0,0.00010815,2]
[421431525,1777639842000,-166.8,0.00010411,2]
[421431580,1777639842000,-11777.8156734,0.000107,2]
[421431639,1777639842000,-22996.21037258,0.00011099,2]
[421431643,1777639842000,-1207.089288,0.00011099,2]
[421431648,1777639842000,-151.0,0.00011099,2]
[421431644,1777639842000,-1207.089288,0.00011099,2]
[421431646,1777639842000,-1207.089288,0.00011099,2]
[421431637,1777639842000,-22996.21037258,0.00011099,2]
[421431650,1777639842000,-203.005892,0.00011099,2]
[421431654,1777639842000,-1940.870919,0.00011099,2]
[421431662,1777639842000,-196.423082,0.00011099,2]
[421431655,1777639842000,-1940.870919,0.00011099,2]
[421431651,1777639842000,-203.005892,0.00011099,2]
[421431652,1777639842000,-203.005892,0.00011099,2]
[421431641,1777639842000,-22996.21037258,0.00011099,2]
[421431656,1777639842000,-1940.870919,0.00011099,2]
[421431657,1777639842000,-196.423082,0.00011099,2]
[421431658,1777639842000,-196.423082,0.00011099,2]
[421431664,1777639842000,-11352.75330192,0.00011107,2]
[421431666,1777639842000,-377.86,0.00011116,2]
[421431672,1777639842000,-1000.0,0.00011121,2]
[421431673,1777639842000,-1000.0,0.00011121,2]
[421431670,1777639842000,-500.40570533,0.00011121,2]
[421431668,1777639842000,-1000.0,0.00011121,2]
[421431674,1777639842000,-318.81887359,0.00011121,2]
[421431669,1777639842000,-1000.0,0.00011121,2]
[421431671,1777639842000,-306.36303735,0.00011121,2]
[421431573,1777639842000,-174.12912852,0.00010575,2]
[421431660,1777639842000,-196.423082,0.00011099,2]
[421431633,1777639842000,-22996.21037258,0.00011099,2]
[421431653,1777639842000,-1940.870919,0.00011099,2]
[421431642,1777639842000,-1207.089288,0.00011099,2]
[421431640,1777639842000,-22996.21037258,0.00011099,2]
[421431586,1777639842000,-623.0,0.00010941,2]
[421431585,1777639842000,-416.91605813,0.000109,2]
[421431588,1777639842000,-1049.0,0.00010941,2]
[421431587,1777639842000,-3533.0,0.00010941,2]
[421431592,1777639842000,-1220.0,0.00010941,2]
[421431595,1777639842000,-200.0,0.00010941,2]
[421431589,1777639842000,-1267.0,0.00010941,2]
[421431601,1777639842000,-272.29317883,0.00010959,2]
[421431599,1777639842000,-6037.0,0.00010941,2]
[421431604,1777639842000,-500.0,0.00010959,2]
[421431608,1777639842000,-4533.76,0.00010959,2]
[421431611,1777639842000,-150.0,0.00010959,2]
[421431625,1777639842000,-200.0,0.00011096,2]
[421431606,1777639842000,-150.0,0.00010959,2]
[421431626,1777639842000,-151.0,0.00011096,2]
[421431635,1777639842000,-22996.21037258,0.00011099,2]
[421431623,1777639842000,-166.66,0.00011068,2]
[421431617,1777639842000,-185.88,0.00010959,2]
[421431628,1777639842000,-11352.75330192,0.00011099,2]
[421431629,1777639842000,-11352.75330192,0.00011099,2]
[421431614,1777639842000,-166.66,0.00010959,2]
[421431649,1777639842000,-203.005892,0.00011099,2]
[421431630,1777639842000,-11352.75330192,0.00011099,2]
[421431627,1777639842000,-11352.75330198,0.00011099,2]
[421431631,1777639842000,-22996.21037266,0.00011099,2]
[421431620,1777639842000,-437.34,0.00010964,2]
[421431621,1777639842000,-416.91605813,0.00011029,2]
[421431725,1777639843000,-151.0,0.00011644,2]
[421431721,1777639843000,-1207.089288,0.00011626,2]
[421431717,1777639843000,-416.91605813,0.00011543,2]
[421431716,1777639843000,-166.66,0.00011507,2]
[421431726,1777639843000,-1003.71055753,0.00011668,2]
[421431727,1777639843000,-1500.0,0.00011668,2]
[421431710,1777639843000,-25972.79535052,0.00011442,2]
[421431714,1777639843000,-1262.895774,0.000115,2]
[421431711,1777639843000,-1394.7261665,0.0001146,2]
[421431707,1777639843000,-500.86,0.00011419,2]
[421431706,1777639843000,-1962.812,0.000114,2]
[421431715,1777639843000,-543.41,0.00011507,2]
[421431709,1777639843000,-11352.75330192,0.00011424,2]
[421431728,1777639843000,-1500.0,0.00011668,2]
[421431731,1777639843000,-979.51915684,0.00011668,2]
[421431722,1777639843000,-1207.089288,0.00011626,2]
[421431720,1777639843000,-343.41951008,0.000116,2]
[421431718,1777639843000,-22996.21037258,0.00011567,2]
[421431723,1777639843000,-1207.089288,0.00011626,2]
[421431724,1777639843000,-1207.089288,0.00011626,2]
[421431729,1777639843000,-1500.0,0.00011668,2]
[421431732,1777639843000,-1500.0,0.00011668,2]
[421431734,1777639843000,-599.60298507,0.00011674,2]
[421431739,1777639843000,-151.0,0.00011751,2]
[421431738,1777639843000,-11352.75330192,0.00011741,2]
[421431736,1777639843000,-209.40437684,0.00011675,2]
[421431735,1777639843000,-512.55827675,0.00011674,2]
[421431712,1777639843000,-151.0,0.00011467,2]
[421431719,1777639843000,-11352.75330192,0.00011583,2]
[421431708,1777639843000,-437.34,0.00011421,2]
[421431678,1777639843000,-540.77065863,0.00011121,2]
[421431704,1777639843000,-235.0,0.00011376,2]
[421431675,1777639843000,-287.81991112,0.00011121,2]
[421431730,1777639843000,-1500.0,0.00011668,2]
[421431677,1777639843000,-1000.0,0.00011121,2]
[421431676,1777639843000,-1000.0,0.00011121,2]
[421431681,1777639843000,-171.97004078,0.00011121,2]
[421431682,1777639843000,-201.93286099,0.00011127,2]
[421431685,1777639843000,-1000.0,0.0001118,2]
[421431683,1777639843000,-163.1725,0.00011173,2]
[421431690,1777639843000,-151.0,0.00011233,2]
[421431679,1777639843000,-1000.0,0.00011121,2]
[421431686,1777639843000,-649.95076368,0.00011214,2]
[421431687,1777639843000,-152.37,0.00011233,2]
[421431680,1777639843000,-572.09413596,0.00011121,2]
[421431689,1777639843000,-151.0,0.00011233,2]
[421431691,1777639843000,-151.0,0.00011233,2]
[421431684,1777639843000,-166.66,0.00011178,2]
[421431688,1777639843000,-151.0,0.00011233,2]
[421431692,1777639843000,-22996.21037258,0.00011233,2]
[421431701,1777639843000,-1955.36,0.00011301,2]
[421431699,1777639843000,-151.0,0.00011301,2]
[421431695,1777639843000,-166.66,0.00011288,2]
[421431703,1777639843000,-180.0,0.00011376,2]
[421431700,1777639843000,-151.0,0.00011301,2]
[421431697,1777639843000,-1000.0,0.000113,2]
[421431694,1777639843000,-11352.75330192,0.00011266,2]
[421431698,1777639843000,-626.0,0.000113,2]
[421431696,1777639843000,-307.0,0.000113,2]
[421431702,1777639843000,-166.66,0.00011325,2]
[421431713,1777639843000,-151.98104825,0.000115,2]
[421431705,1777639843000,-166.66,0.00011397,2]
[421431741,1777639843000,-203.005892,0.00011751,2]
[421431693,1777639843000,-151.0,0.00011242,2]
[421431737,1777639843000,-748.47,0.000117,2]
[421431788,1777639843000,-151.0,0.00011943,2]
[421431781,1777639843000,-3916.9065325,0.00011943,2]
[421431769,1777639843000,-151.0,0.000119,2]
[421431776,1777639843000,-250.0,0.00011934,2]
[421431774,1777639843000,-350.0,0.00011923,2]
[421431771,1777639843000,-11352.75330192,0.000119,2]
[421431778,1777639843000,-375.98,0.00011934,2]
[421431789,1777639843000,-151.0,0.00011943,2]
[421431793,1777639843000,-1207.089288,0.00011943,2]
[421431795,1777639843000,-1207.089288,0.00011943,2]
[421431822,1777639843000,-151.0,0.00011943,2]
[421431799,1777639843000,-1207.089288,0.00011943,2]
[421431797,1777639843000,-1207.089288,0.00011943,2]
[421431810,1777639843000,-1940.870919,0.00011943,2]
[421431812,1777639843000,-1940.870919,0.00011943,2]
[421431801,1777639843000,-241.131763,0.00011943,2]
[421431805,1777639843000,-203.005892,0.00011943,2]
[421431803,1777639843000,-203.005892,0.00011943,2]
[421431808,1777639843000,-203.005892,0.00011943,2]
[421431807,1777639843000,-203.005892,0.00011943,2]
[421431814,1777639843000,-1940.870919,0.00011943,2]
[421431815,1777639843000,-1940.870919,0.00011943,2]
[421431817,1777639843000,-196.423082,0.00011943,2]
[421431818,1777639843000,-196.423082,0.00011943,2]
[421431820,1777639843000,-151.0,0.00011943,2]
[421431816,1777639843000,-196.423082,0.00011943,2]
[421431819,1777639843000,-196.423082,0.00011943,2]
[421431824,1777639843000,-151.0,0.00011943,2]
[421431733,1777639843000,-150.0,0.00011673,2]
[421431773,1777639843000,-666.66667,0.0001191,2]
[421431785,1777639843000,-151.0,0.00011943,2]
[421431791,1777639843000,-151.0,0.00011943,2]
[421431783,1777639843000,-847086.5243799,0.00011943,2]
[421431742,1777639843000,-203.005892,0.00011751,2]
[421431740,1777639843000,-203.005892,0.00011751,2]
[421431754,1777639843000,-150.0,0.00011808,2]
[421431744,1777639843000,-1940.870919,0.00011751,2]
[421431743,1777639843000,-203.005892,0.00011751,2]
[421431772,1777639843000,-200.0,0.00011904,2]
[421431747,1777639843000,-1940.870919,0.00011751,2]
[421431748,1777639843000,-196.423082,0.00011751,2]
[421431753,1777639843000,-1594.86888029,0.0001176,2]
[421431750,1777639843000,-196.423082,0.00011751,2]
[421431752,1777639843000,-166.66,0.00011757,2]
[421431746,1777639843000,-1940.870919,0.00011751,2]
[421431749,1777639843000,-196.423082,0.00011751,2]
[421431751,1777639843000,-196.423082,0.00011751,2]
[421431755,1777639843000,-489.71496178,0.00011843,2]
[421431745,1777639843000,-1940.870919,0.00011751,2]
[421431756,1777639843000,-181.63290661,0.00011843,2]
[421431759,1777639843000,-437.34,0.00011877,2]
[421431780,1777639843000,-300.0,0.00011942,2]
[421431770,1777639843000,-22996.21037258,0.000119,2]
[421431765,1777639843000,-736.0,0.00011896,2]
[421431762,1777639843000,-3292.0,0.00011884,2]
[421431763,1777639843000,-666.66666,0.0001189,2]
[421431767,1777639843000,-3671.6978,0.000119,2]
[421431764,1777639843000,-7422.5377941,0.00011893,2]
[421431760,1777639843000,-666.66666,0.0001188,2]
[421431766,1777639843000,-1906.6069,0.000119,2]
[421431761,1777639843000,-666.66667,0.0001188,2]
[421431758,1777639843000,-311.2054729,0.00011873,2]
[421431757,1777639843000,-6639.58356692,0.00011843,2]
[421431768,1777639843000,-2000.0,0.000119,2]
[421431862,1777639844000,-1000.0,0.00011999,2]
[421431839,1777639844000,-1000.0,0.00011999,2]
[421431864,1777639844000,-1000.0,0.00011999,2]
[421431866,1777639844000,-1000.0,0.00011999,2]
[421431872,1777639844000,-1000.0,0.00011999,2]
[421431856,1777639844000,-1000.0,0.00011999,2]
[421431854,1777639844000,-1000.0,0.00011999,2]
[421431842,1777639844000,-1000.0,0.00011999,2]
[421431844,1777639844000,-1000.0,0.00011999,2]
[421431832,1777639844000,-295.90885131,0.00011999,2]
[421431852,1777639844000,-1000.0,0.00011999,2]
[421431834,1777639844000,-1000.0,0.00011999,2]
[421431837,1777639844000,-1000.0,0.00011999,2]
[421431846,1777639844000,-1000.0,0.00011999,2]
[421431848,1777639844000,-1000.0,0.00011999,2]
[421431835,1777639844000,-1000.0,0.00011999,2]
[421431826,1777639844000,-151.0,0.00011943,2]
[421431830,1777639844000,-1223.5174914,0.0001199,2]
[421431875,1777639844000,-1000.0,0.00011999,2]
[421431850,1777639844000,-1000.0,0.00011999,2]
[421431858,1777639844000,-1000.0,0.00011999,2]
[421431828,1777639844000,-1223.5174914,0.0001199,2]
[421431877,1777639844000,-1000.0,0.00011999,2]
[421431905,1777639844000,-26562.09775972,0.00012,2]
[421431907,1777639844000,-287.68959405,0.00012,2]
[421431904,1777639844000,-5972.41868625,0.00012,2]
[421431906,1777639844000,-285166.57939399,0.00012,2]
[421431901,1777639844000,-40.87159979,0.00012,2]
[421431903,1777639844000,-7742.3,0.00012,2]
[421431889,1777639844000,-1000.0,0.00011999,2]
[421431897,1777639844000,-248833.4610395,0.00012,2]
[421431881,1777639844000,-1000.0,0.00011999,2]
[421431902,1777639844000,-524.0,0.00012,2]
[421431885,1777639844000,-1000.0,0.00011999,2]
[421431887,1777639844000,-1000.0,0.00011999,2]
[421431860,1777639844000,-1000.0,0.00011999,2]
[421431870,1777639844000,-1000.0,0.00011999,2]
[421431894,1777639844000,-1006.93960088,0.00011999,2]
[421431879,1777639844000,-1000.0,0.00011999,2]
[421431898,1777639844000,-153668.99806677,0.00012,2]
[421431883,1777639844000,-1000.0,0.00011999,2]
[421431891,1777639844000,-1000.0,0.00011999,2]
[421431895,1777639844000,-176639.54738501,0.00012,2]
[421431868,1777639844000,-1000.0,0.00011999,2]
[421431908,1777639845000,-312.33628569,0.00010941,2]
[421431920,1777639845000,-1023.23360278,0.00012,2]
[421431918,1777639845000,-190.12048387,0.0001,2]
[421431919,1777639845000,-68.64591335,0.00010941,2]
[421431913,1777639845000,-121.41095421,0.00010941,2]
[421431912,1777639845000,-188.0,0.0001,2]
[421431911,1777639845000,-107.58904579,0.0001,2]
[421431910,1777639845000,-80.41095421,0.0001,2]
[421431909,1777639845000,-425.60684675,0.00010941,2]
[421431921,1777639846000,-57.44835525,0.0001176,2]
[421431923,1777639846000,-7112.78600945,0.00012,2]
[421431922,1777639846000,-1005.79756495,0.0001176,2]
[421431928,1777639892000,-550.0,8.653e-05,2]
[421431929,1777639907000,488.32,0.00030137,120]
[421431930,1777640027000,167.41,5.266e-05,2]
[421431934,1777640028000,167.41,6.375e-05,2]
[421431933,1777640028000,167.41,6.098e-05,2]
[421431932,1777640028000,167.41,5.821e-05,2]
[421431931,1777640028000,167.41,5.544e-05,2]
[421431937,1777640029000,167.41,7.207e-05,2]
[421431936,1777640029000,167.41,6.93e-05,2]
[421431935,1777640029000,167.41,6.652e-05,2]
[421431938,1777640029000,167.41,7.484e-05,2]
[421431939,1777640030000,167.41,7.761e-05,2]
[421431942,1777640030000,167.41,8.593e-05,2]
[421431941,1777640030000,167.41,8.315e-05,2]
[421431940,1777640030000,167.41,8.038e-05,2]
[421431947,1777640452000,327.91,8.358e-05,2]
[421431948,1777640477000,380.24,8.281e-05,2]
[421431954,1777640598000,200.0,8.53e-05,2]
[421431955,1777640684000,500.0,8.523e-05,2]
[421431957,1777640857000,154.47,4.597e-05,2]
[421431956,1777640857000,154.47,4.355e-05,2]
[421431962,1777640858000,154.47,5.807e-05,2]
[421431961,1777640858000,154.47,5.565e-05,2]
[421431960,1777640858000,154.47,5.323e-05,2]
[421431959,1777640858000,154.47,5.081e-05,2]
[421431958,1777640858000,154.47,4.839e-05,2]
[421431967,1777640859000,154.47,7.017e-05,2]
[421431966,1777640859000,154.47,6.775e-05,2]
[421431965,1777640859000,154.47,6.533e-05,2]
[421431964,1777640859000,154.47,6.291e-05,2]
[421431963,1777640859000,154.47,6.049e-05,2]
[421431968,1777640860000,154.47,7.259e-05,2]
[421431971,1777640860000,154.47,7.984e-05,2]
[421431970,1777640860000,154.47,7.742e-05,2]
[421431969,1777640860000,154.47,7.5e-05,2]
[421431973,1777640861000,154.47,8.468e-05,2]
[421431972,1777640861000,154.47,8.226e-05,2]
[421431974,1777640941000,279.99,8.517e-05,2]
[421431975,1777640950000,-3430.0,8.608e-05,2]
[421431979,1777641031000,-261.0,8.608e-05,2]
[421432015,1777641032000,-337.26320013,8.729e-05,2]
[421432012,1777641032000,-339.22398689,8.729e-05,2]
[421432028,1777641032000,-500.0,8.729e-05,2]
[421432029,1777641032000,-500.0,8.729e-05,2]
[421432023,1777641032000,-500.0,8.729e-05,2]
[421432027,1777641032000,-500.0,8.729e-05,2]
[421432025,1777641032000,-286.70658571,8.729e-05,2]
[421432030,1777641032000,-500.0,8.729e-05,2]
[421432013,1777641032000,-278.55005238,8.729e-05,2]
[421432026,1777641032000,-500.0,8.729e-05,2]
[421432018,1777641032000,-500.53714952,8.729e-05,2]
[421432031,1777641032000,-500.0,8.729e-05,2]
[421432021,1777641032000,-500.0,8.729e-05,2]
[421432006,1777641032000,-306.87286433,8.729e-05,2]
[421432034,1777641032000,-500.0,8.729e-05,2]
[421432043,1777641032000,-500.0,8.729e-05,2]
[421432033,1777641032000,-500.0,8.729e-05,2]
[421432032,1777641032000,-500.0,8.729e-05,2]
[421432042,1777641032000,-500.0,8.729e-05,2]
[421432041,1777641032000,-500.0,8.729e-05,2]
[421432039,1777641032000,-500.0,8.729e-05,2]
[421432036,1777641032000,-500.0,8.729e-05,2]
[421432037,1777641032000,-500.0,8.729e-05,2]
[421432038,1777641032000,-500.0,8.729e-05,2]
[421432017,1777641032000,-500.0,8.729e-05,2]
[421432010,1777641032000,-193.12713567,8.729e-05,2]
[421432004,1777641032000,-500.0,8.729e-05,2]
[421432002,1777641032000,-164.68121822,8.729e-05,2]
[421431980,1777641032000,-124.545193,8.608e-05,2]
[421431982,1777641032000,-346.77405471,8.691e-05,2]
[421431981,1777641032000,-150.0,8.652e-05,2]
[421431983,1777641032000,-153.22594529,8.691e-05,2]
[421431986,1777641032000,-150.0,8.728e-05,2]
[421431988,1777641032000,-1176.0,8.728e-05,2]
[421431989,1777641032000,-197.30405471,8.728e-05,2]
[421431987,1777641032000,-300.0,8.728e-05,2]
[421431991,1777641032000,-211.88883411,8.728e-05,2]